{"text_format":"3","workbook":"xlsx","n_sheets":1,"sheets":["Utgiftsrapport"],"not_rendered":{"images":2,"defined_names":12},"read":"whole","date_system":"1900"}

{"sheet":"Utgiftsrapport","index":0,"n_rows":24,"n_cols":13,"rows_kept":24,"merged":[[3,2,3,3],[3,5,3,6],[3,9,3,10],[4,2,4,3],[4,5,4,6],[4,9,4,10],[5,2,5,3],[5,5,5,6],[5,9,5,10],[6,2,6,3],[6,5,6,6],[6,9,6,10],[7,9,7,10]]}
[null,"UTGIFTSRAPPORT"]
[null,"CONTOSO, LTD"]
[null,"Storgatan 123, 12345 Storstad"]
[null,"TELEFON",{"v":4255550121,"d":"42555501 21"},null,"NAMN","Mikaela Jakobsson",null,null,"SYFTE","Årligt försäljningsseminarium",null,"MILERSÄTTNING",{"v":3.5,"d":"3.50 kr/km"}]
[null,"FAX",{"v":4255550122,"d":"42555501 22"},null,"AVDELNING","Försäljning",null,null,"BÖRJAR",{"$f":"IFERROR(MIN(Utgifter[DATUM]),\"\")","v":"2018-06-04"},null,"Måltidsersättning",{"v":210,"d":"210.00 kr/dag"}]
[null,"E-POST","info@contoso.com",null,"BEFATTNING","VD",null,null,"SLUTAR",{"$f":"IFERROR(MAX(Utgifter[DATUM]),\"\")","v":"2018-07-04"},null,"Hotellersättning",{"v":1400,"d":"1,400.00 kr/natt"}]
[null,"WEBB","www.contoso.com",null,"CHEF","Max Lundgren",null,null,"FÖRBEREDD AV","Mikaela Jakobsson",null,"TELEFONERSÄTTNING",{"v":70,"d":"70.00 kr/dag"}]
[{"$nulls":8},"GODKÄND AV","Max Lundgren",null,"ÖVRIGT ERSÄTTNING",{"v":350,"d":"350.00 kr/dag"}]
[]
[null,"DATUM","KONTO","BESKRIVNING","HOTELL","TRANSPORT","MÅLTIDER","TELEFON","ÖVRIGT","MÄTARSTÄLLNING \nSTART","MÄTARSTÄLLNING \nSLUT","KÖRSTRÄCKA \nSUMMA","SUMMA "]
[null,{"$f":"TODAY()","v":"2018-06-04"},"Försäljning","Körsträcka",{"$nulls":4},{"v":350,"d":"350.00 kr"},{"v":11378.5,"d":"11,378.5 km"},{"v":11456.2,"d":"11,456.2 km"},{"$f":"IF(COUNTA(Utgifter[[#This Row],[MÄTARSTÄLLNING \nSTART]:[MÄTARSTÄLLNING \nSLUT]])=2,(Utgifter[[#This Row],[MÄTARSTÄLLNING \nSLUT]]-Utgifter[[#This Row],[MÄTARSTÄLLNING \nSTART]])*Milersättning,\"\")","v":{"v":271.95000000000255,"d":"271.95 kr"}},{"$f":"IF(COUNTA(Utgifter[[#This Row],[DATUM]:[MÄTARSTÄLLNING \nSLUT]])=0,\"\",SUM(Utgifter[[#This Row],[HOTELL]:[TRANSPORT]],Utgifter[[#This Row],[MÅLTIDER]:[ÖVRIGT]],((Utgifter[[#This Row],[MÄTARSTÄLLNING \nSLUT]]-Utgifter[[#This Row],[MÄTARSTÄLLNING \nSTART]])*(Milersättning))))","v":{"v":621.9500000000025,"d":"621.95 kr"}}]
[null,{"$f":"TODAY()+30","v":"2018-07-04"},"Försäljning","Konferens",{"v":3115,"d":"3,115.00 kr"},{"v":1575,"d":"1,575.00 kr"},{"v":140,"d":"140.00 kr"},null,{"v":35,"d":"35.00 kr"},{"v":11500,"d":"11,500.0 km"},{"v":11560,"d":"11,560.0 km"},{"$f":"IF(COUNTA(Utgifter[[#This Row],[MÄTARSTÄLLNING \nSTART]:[MÄTARSTÄLLNING \nSLUT]])=2,(Utgifter[[#This Row],[MÄTARSTÄLLNING \nSLUT]]-Utgifter[[#This Row],[MÄTARSTÄLLNING \nSTART]])*Milersättning,\"\")","v":{"v":210,"d":"210.00 kr"}},{"$f":"IF(COUNTA(Utgifter[[#This Row],[DATUM]:[MÄTARSTÄLLNING \nSLUT]])=0,\"\",SUM(Utgifter[[#This Row],[HOTELL]:[TRANSPORT]],Utgifter[[#This Row],[MÅLTIDER]:[ÖVRIGT]],((Utgifter[[#This Row],[MÄTARSTÄLLNING \nSLUT]]-Utgifter[[#This Row],[MÄTARSTÄLLNING \nSTART]])*(Milersättning))))","v":{"v":5075,"d":"5,075.00 kr"}}]
[{"$nulls":11},{"$f":"IF(COUNTA(Utgifter[[#This Row],[MÄTARSTÄLLNING \nSTART]:[MÄTARSTÄLLNING \nSLUT]])=2,(Utgifter[[#This Row],[MÄTARSTÄLLNING \nSLUT]]-Utgifter[[#This Row],[MÄTARSTÄLLNING \nSTART]])*Milersättning,\"\")","v":""},{"$f":"IF(COUNTA(Utgifter[[#This Row],[DATUM]:[MÄTARSTÄLLNING \nSLUT]])=0,\"\",SUM(Utgifter[[#This Row],[HOTELL]:[TRANSPORT]],Utgifter[[#This Row],[MÅLTIDER]:[ÖVRIGT]],((Utgifter[[#This Row],[MÄTARSTÄLLNING \nSLUT]]-Utgifter[[#This Row],[MÄTARSTÄLLNING \nSTART]])*(Milersättning))))","v":""}]
[{"$nulls":11},{"$f":"IF(COUNTA(Utgifter[[#This Row],[MÄTARSTÄLLNING \nSTART]:[MÄTARSTÄLLNING \nSLUT]])=2,(Utgifter[[#This Row],[MÄTARSTÄLLNING \nSLUT]]-Utgifter[[#This Row],[MÄTARSTÄLLNING \nSTART]])*Milersättning,\"\")","v":""},{"$f":"IF(COUNTA(Utgifter[[#This Row],[DATUM]:[MÄTARSTÄLLNING \nSLUT]])=0,\"\",SUM(Utgifter[[#This Row],[HOTELL]:[TRANSPORT]],Utgifter[[#This Row],[MÅLTIDER]:[ÖVRIGT]],((Utgifter[[#This Row],[MÄTARSTÄLLNING \nSLUT]]-Utgifter[[#This Row],[MÄTARSTÄLLNING \nSTART]])*(Milersättning))))","v":""}]
[{"$nulls":11},{"$f":"IF(COUNTA(Utgifter[[#This Row],[MÄTARSTÄLLNING \nSTART]:[MÄTARSTÄLLNING \nSLUT]])=2,(Utgifter[[#This Row],[MÄTARSTÄLLNING \nSLUT]]-Utgifter[[#This Row],[MÄTARSTÄLLNING \nSTART]])*Milersättning,\"\")","v":""},{"$f":"IF(COUNTA(Utgifter[[#This Row],[DATUM]:[MÄTARSTÄLLNING \nSLUT]])=0,\"\",SUM(Utgifter[[#This Row],[HOTELL]:[TRANSPORT]],Utgifter[[#This Row],[MÅLTIDER]:[ÖVRIGT]],((Utgifter[[#This Row],[MÄTARSTÄLLNING \nSLUT]]-Utgifter[[#This Row],[MÄTARSTÄLLNING \nSTART]])*(Milersättning))))","v":""}]
[{"$nulls":11},{"$f":"IF(COUNTA(Utgifter[[#This Row],[MÄTARSTÄLLNING \nSTART]:[MÄTARSTÄLLNING \nSLUT]])=2,(Utgifter[[#This Row],[MÄTARSTÄLLNING \nSLUT]]-Utgifter[[#This Row],[MÄTARSTÄLLNING \nSTART]])*Milersättning,\"\")","v":""},{"$f":"IF(COUNTA(Utgifter[[#This Row],[DATUM]:[MÄTARSTÄLLNING \nSLUT]])=0,\"\",SUM(Utgifter[[#This Row],[HOTELL]:[TRANSPORT]],Utgifter[[#This Row],[MÅLTIDER]:[ÖVRIGT]],((Utgifter[[#This Row],[MÄTARSTÄLLNING \nSLUT]]-Utgifter[[#This Row],[MÄTARSTÄLLNING \nSTART]])*(Milersättning))))","v":""}]
[{"$nulls":11},{"$f":"IF(COUNTA(Utgifter[[#This Row],[MÄTARSTÄLLNING \nSTART]:[MÄTARSTÄLLNING \nSLUT]])=2,(Utgifter[[#This Row],[MÄTARSTÄLLNING \nSLUT]]-Utgifter[[#This Row],[MÄTARSTÄLLNING \nSTART]])*Milersättning,\"\")","v":""},{"$f":"IF(COUNTA(Utgifter[[#This Row],[DATUM]:[MÄTARSTÄLLNING \nSLUT]])=0,\"\",SUM(Utgifter[[#This Row],[HOTELL]:[TRANSPORT]],Utgifter[[#This Row],[MÅLTIDER]:[ÖVRIGT]],((Utgifter[[#This Row],[MÄTARSTÄLLNING \nSLUT]]-Utgifter[[#This Row],[MÄTARSTÄLLNING \nSTART]])*(Milersättning))))","v":""}]
[{"$nulls":11},{"$f":"IF(COUNTA(Utgifter[[#This Row],[MÄTARSTÄLLNING \nSTART]:[MÄTARSTÄLLNING \nSLUT]])=2,(Utgifter[[#This Row],[MÄTARSTÄLLNING \nSLUT]]-Utgifter[[#This Row],[MÄTARSTÄLLNING \nSTART]])*Milersättning,\"\")","v":""},{"$f":"IF(COUNTA(Utgifter[[#This Row],[DATUM]:[MÄTARSTÄLLNING \nSLUT]])=0,\"\",SUM(Utgifter[[#This Row],[HOTELL]:[TRANSPORT]],Utgifter[[#This Row],[MÅLTIDER]:[ÖVRIGT]],((Utgifter[[#This Row],[MÄTARSTÄLLNING \nSLUT]]-Utgifter[[#This Row],[MÄTARSTÄLLNING \nSTART]])*(Milersättning))))","v":""}]
[{"$nulls":11},{"$f":"IF(COUNTA(Utgifter[[#This Row],[MÄTARSTÄLLNING \nSTART]:[MÄTARSTÄLLNING \nSLUT]])=2,(Utgifter[[#This Row],[MÄTARSTÄLLNING \nSLUT]]-Utgifter[[#This Row],[MÄTARSTÄLLNING \nSTART]])*Milersättning,\"\")","v":""},{"$f":"IF(COUNTA(Utgifter[[#This Row],[DATUM]:[MÄTARSTÄLLNING \nSLUT]])=0,\"\",SUM(Utgifter[[#This Row],[HOTELL]:[TRANSPORT]],Utgifter[[#This Row],[MÅLTIDER]:[ÖVRIGT]],((Utgifter[[#This Row],[MÄTARSTÄLLNING \nSLUT]]-Utgifter[[#This Row],[MÄTARSTÄLLNING \nSTART]])*(Milersättning))))","v":""}]
[{"$nulls":11},{"$f":"IF(COUNTA(Utgifter[[#This Row],[MÄTARSTÄLLNING \nSTART]:[MÄTARSTÄLLNING \nSLUT]])=2,(Utgifter[[#This Row],[MÄTARSTÄLLNING \nSLUT]]-Utgifter[[#This Row],[MÄTARSTÄLLNING \nSTART]])*Milersättning,\"\")","v":""},{"$f":"IF(COUNTA(Utgifter[[#This Row],[DATUM]:[MÄTARSTÄLLNING \nSLUT]])=0,\"\",SUM(Utgifter[[#This Row],[HOTELL]:[TRANSPORT]],Utgifter[[#This Row],[MÅLTIDER]:[ÖVRIGT]],((Utgifter[[#This Row],[MÄTARSTÄLLNING \nSLUT]]-Utgifter[[#This Row],[MÄTARSTÄLLNING \nSTART]])*(Milersättning))))","v":""}]
[{"$nulls":11},{"$f":"IF(COUNTA(Utgifter[[#This Row],[MÄTARSTÄLLNING \nSTART]:[MÄTARSTÄLLNING \nSLUT]])=2,(Utgifter[[#This Row],[MÄTARSTÄLLNING \nSLUT]]-Utgifter[[#This Row],[MÄTARSTÄLLNING \nSTART]])*Milersättning,\"\")","v":""},{"$f":"IF(COUNTA(Utgifter[[#This Row],[DATUM]:[MÄTARSTÄLLNING \nSLUT]])=0,\"\",SUM(Utgifter[[#This Row],[HOTELL]:[TRANSPORT]],Utgifter[[#This Row],[MÅLTIDER]:[ÖVRIGT]],((Utgifter[[#This Row],[MÄTARSTÄLLNING \nSLUT]]-Utgifter[[#This Row],[MÄTARSTÄLLNING \nSTART]])*(Milersättning))))","v":""}]
[null,"TOTALSUMMOR",null,null,{"$f":"SUBTOTAL(109,Utgifter[HOTELL])","v":{"v":3115,"d":"3,115.00 kr"}},{"$f":"SUBTOTAL(109,Utgifter[TRANSPORT])","v":{"v":1575,"d":"1,575.00 kr"}},{"$f":"SUBTOTAL(109,Utgifter[MÅLTIDER])","v":{"v":140,"d":"140.00 kr"}},{"$f":"SUBTOTAL(109,Utgifter[TELEFON])","v":0},{"$f":"SUBTOTAL(109,Utgifter[ÖVRIGT])","v":{"v":385,"d":"385.00 kr"}},{"$nulls":3},{"$f":"SUBTOTAL(109,Utgifter[[SUMMA ]])","v":{"v":5696.950000000003,"d":"5,696.95 kr"}}]
[{"$nulls":11},"FÖRSKOTT",{"v":0,"d":"0.00 kr"}]
[{"$nulls":11},"SUMMA",{"$f":"Utgifter[[#Totals],[SUMMA ]]-Förskott","v":{"v":5696.950000000003,"d":"5,696.95 kr"}}]